bitfinex/quotes_SOLUSD_20250602
["timestamp","ask_amount","ask_price","bid_price","bid_amount"]
[1748855255053,79.02745385,153.9,153.8,6.50164924]
[1748855255054,27.88001106,153.83,153.8,6.50164924]
[1748855255969,27.88001106,153.83,153.79,1.5164]
[1748855256278,27.88001106,153.8,153.76,9.19461137]
[1748855256462,27.88001106,153.82,153.77,27.88001106]
[1748855256781,6.6017,153.86,153.78,27.88001106]
[1748855256782,27.88001106,153.83,153.78,27.88001106]
[1748855257080,27.88001106,153.83,153.79,27.88001106]
[1748855257265,27.88001106,153.85,153.8,27.88001106]
[1748855257663,36.42790131,153.89,153.83,27.88001106]
[1748855257664,11.28,153.89,153.83,27.88001106]
[1748855257859,11.28,153.89,153.85,27.88001106]
[1748855258052,39.16001106,153.89,153.84,27.88001106]
[1748855258255,11.28,153.89,153.83,8.15068565]
[1748855258452,11.28,153.89,153.83,6.50028565]
[1748855258453,27.88001106,153.86,153.83,6.50028565]
[1748855258762,11.28,153.89,153.85,27.88001106]
[1748855259375,39.16001106,153.89,153.85,27.88001106]
[1748855259860,27.88001106,153.92,153.88,27.88001106]
[1748855260062,27.88001106,153.92,153.87,27.88001106]
[1748855260477,54.02,153.94,153.83,22.75199207]
[1748855260478,27.88001106,153.89,153.86,32.49941505]
[1748855260890,60.51627745,153.94,153.88,27.88001106]
[1748855261073,11.76,153.94,153.86,6.49941505]
[1748855261383,27.88001106,153.93,153.89,27.88001106]
[1748855261583,27.88001106,153.92,153.87,27.88001106]
[1748855262289,18.25608116,153.94,153.88,27.88001106]
[1748855262465,27.88001106,153.89,153.79,8.2823]
[1748855262656,27.88001106,153.87,153.79,8.2823]
[1748855262856,67.64695247,153.91,153.79,8.2823]
[1748855262857,27.88001106,153.86,153.79,8.2823]
[1748855263070,27.88001106,153.86,153.82,27.88001106]
[1748855263589,67.64695247,153.91,153.82,6.50073899]
[1748855263590,27.88001106,153.87,153.82,6.50073899]
[1748855263762,27.88001106,153.84,153.8,34.38196164]
[1748855263966,27.88001106,153.84,153.8,6.50195058]
[1748855264169,6.49868994,153.88,153.8,34.38196164]
[1748855264170,18.25868994,153.88,153.8,34.38196164]
[1748855264469,39.64001106,153.88,153.84,27.88001106]
[1748855264867,39.64001106,153.88,153.83,27.88001106]
[1748855265373,27.88001106,153.87,153.83,27.88001106]
[1748855265570,11.76,153.88,153.8,6.50195058]
[1748855265784,27.88001106,153.87,153.83,27.88001106]
[1748855265980,39.64001106,153.88,153.83,27.88001106]
[1748855266976,11.76,153.88,153.83,27.88001106]
[1748855267175,39.64001106,153.88,153.83,27.88001106]
[1748855267687,39.64001106,153.88,153.84,6.50026001]
[1748855269085,39.64001106,153.88,153.82,27.88001106]
[1748855269086,27.88001106,153.86,153.82,27.88001106]
[1748855269475,27.88001106,153.87,153.82,27.88001106]
[1748855269678,11.76,153.88,153.83,34.38069363]
[1748855269885,27.88001106,153.87,153.83,34.38069363]
[1748855270968,27.88001106,153.86,153.83,6.50068257]
[1748855271475,11.76,153.88,153.83,34.38069363]
[1748855271683,39.64001106,153.88,153.83,34.38069363]
[1748855271996,27.88001106,153.87,153.83,34.38069363]
[1748855272288,27.88001106,153.86,153.83,6.50068257]
[1748855272682,11.76,153.88,153.83,6.50068257]
[1748855273294,27.88001106,153.86,153.83,6.50068257]
[1748855273468,39.64001106,153.88,153.83,34.38069363]
[1748855273669,11.76,153.88,153.86,34.37920674]
[1748855274084,148.9,153.89,153.86,34.37920674]
[1748855274594,176.78001106,153.89,153.86,6.49919568]
[1748855275280,176.78001106,153.89,153.85,27.88001106]
[1748855276172,176.78001106,153.89,153.85,34.37943978]
[1748855276477,11.76,153.93,153.88,27.88001106]
[1748855276669,11.76,153.93,153.9,27.88001106]
[1748855276970,11.76,153.93,153.85,22.74902248]
[1748855276971,27.88001106,153.91,153.85,6.49942872]
[1748855277172,27.88001106,153.89,153.85,34.37943978]
[1748855277386,27.88001106,153.9,153.85,6.49942872]
[1748855277570,27.88001106,153.88,153.85,6.49942872]
[1748855277770,27.88001106,153.89,153.85,34.37943978]
[1748855278596,27.88001106,153.9,153.86,27.88001106]
[1748855278796,42.34,153.91,153.87,27.88001106]
[1748855278966,148.9,153.92,153.88,27.88001106]
[1748855279169,176.78001106,153.92,153.87,27.88001106]
[1748855279376,219.12001106,153.92,153.87,27.88001106]
[1748855279982,191.24,153.92,153.87,27.88001106]
[1748855280182,11.76,153.93,153.9,27.88001106]
[1748855280492,11.76,153.93,153.91,34.37689848]
[1748855280702,27.88001106,153.92,153.88,6.49857031]
[1748855280990,27.88001106,153.91,153.88,6.49857031]
[1748855281384,70.22001106,153.92,153.88,6.49857031]
[1748855281596,27.88001106,153.89,153.84,6.50026001]
[1748855281805,27.88001106,153.88,153.84,6.50026001]
[1748855282278,27.88001106,153.88,153.84,34.38027107]
[1748855282986,27.88001106,153.89,153.84,50.63092109]
[1748855283182,176.78001106,153.92,153.87,27.88001106]
[1748855283402,39.64001106,153.93,153.86,26.0]
[1748855283690,11.76,153.93,153.89,27.88001106]
[1748855283884,11.76,153.93,153.9,27.88001106]
[1748855284298,39.64001106,153.93,153.86,68.34]
[1748855284488,39.64001106,153.93,153.88,27.88001106]
[1748855284695,27.88001106,153.9,153.86,27.88001106]
[1748855284912,27.88001106,153.9,153.87,6.49899265]
[1748855285417,27.88001106,153.89,153.87,6.49899265]
[1748855286007,6.49713224,153.92,153.85,6.4998375]
[1748855286184,27.88001106,153.88,153.85,6.4998375]
[1748855286385,27.88001106,153.89,153.85,6.4998375]
[1748855287006,27.88001106,153.88,153.85,6.4998375]
[1748855287404,27.88001106,153.89,153.85,6.4998375]
[1748855287723,27.88001106,153.9,153.85,50.62944232]
[1748855288210,27.88001106,153.89,153.85,50.62944232]
[1748855288419,27.88001106,153.88,153.85,6.4998375]
[1748855288914,48.85699718,153.92,153.86,27.88001106]
[1748855288915,42.36,153.92,153.86,27.88001106]
[1748855289121,70.24001106,153.92,153.87,34.37900371]
[1748855289424,11.76,153.93,153.88,27.88001106]
[1748855289425,39.64001106,153.93,153.88,27.88001106]
[1748855290128,27.88001106,153.91,153.87,34.37900371]
[1748855290427,27.88001106,153.91,153.87,6.49899265]
[1748855290592,27.88001106,153.91,153.87,34.37900371]
[1748855290909,27.88001106,153.88,153.83,6.50054092]
[1748855291120,27.88001106,153.84,153.8,6.50195058]
[1748855291295,27.88001106,153.81,153.8,6.50195058]
[1748855291501,27.88001106,153.81,153.78,6.5027962]
[1748855292045,27.88001106,153.79,153.77,1.6321]
[1748855292316,27.88001106,153.78,153.76,9.19461137]
[1748855292520,27.88001106,153.78,153.76,15.69809102]
[1748855293094,11.8,153.81,153.76,9.19461137]
[1748855293311,11.8,153.81,153.78,27.88001106]
[1748855293707,11.8,153.81,153.76,31.95733216]
[1748855293909,11.8,153.81,153.78,27.88001106]
[1748855294326,11.8,153.86,153.8,27.88001106]
[1748855294525,15.51897584,153.86,153.83,27.88001106]
[1748855294825,27.88001106,153.84,153.8,1.5145]
[1748855295021,27.88001106,153.83,153.78,27.88001106]
[1748855295337,27.88001106,153.82,153.79,6.50237336]
[1748855295508,27.88001106,153.81,153.79,6.50237336]
[1748855295827,27.88001106,153.81,153.77,34.38323015]
[1748855296209,22.36865456,153.85,153.77,34.38323015]
[1748855296414,27.88001106,153.82,153.77,34.38323015]
[1748855297320,3.7190057,153.85,153.78,27.88001106]
[1748855297521,27.88001106,153.81,153.77,50.64127788]
[1748855297723,27.88001106,153.81,153.77,22.76126682]
[1748855297917,27.88001106,153.81,153.77,50.64127788]
[1748855298722,27.88001106,153.81,153.77,6.50321909]
[1748855298915,27.88001106,153.81,153.77,34.38323015]
[1748855299824,27.88001106,153.8,153.77,6.50321909]
[1748855301207,27.88001106,153.8,153.76,15.69811658]
[1748855302217,27.88001106,153.79,153.76,15.69811658]
[1748855302714,27.88001106,153.8,153.76,15.69811658]
[1748855303808,27.88001106,153.79,153.76,15.69811658]
[1748855304136,27.88001106,153.78,153.76,9.19461137]
[1748855304636,27.88001106,153.77,153.76,9.19461137]
[1748855305748,53.03287901,153.77,153.76,9.19461137]
[1748855306237,185.85176839,153.8,153.76,9.19461137]
[1748855306406,27.88001106,153.77,153.76,9.19461137]
[1748855306608,11.8,153.8,153.76,43.57826446]
[1748855306919,11.8,153.8,153.77,27.88001106]
[1748855307343,11.8,153.8,153.76,31.95735849]
[1748855307643,11.8,153.8,153.77,27.88001106]
[1748855308606,11.8,153.8,153.76,31.95735849]
[1748855308810,11.8,153.8,153.76,33.61205849]
[1748855309643,11.8,153.8,153.79,27.88001106]
[1748855309815,11.8,153.85,153.79,27.88001106]
[1748855310012,39.68001106,153.85,153.8,27.88001106]
[1748855310225,11.8,153.85,153.83,27.88001106]
[1748855310628,11.8,153.85,153.84,27.88001106]
[1748855311051,121.44001106,153.89,153.84,27.88001106]
[1748855311639,121.44001106,153.89,153.85,6.4998375]
[1748855312233,121.44001106,153.89,153.85,34.37984856]
[1748855313239,11.8,153.9,153.85,34.37984856]
[1748855313240,11.8,153.9,153.86,27.88001106]
[1748855313436,11.8,153.9,153.88,27.88001106]
[1748855313636,11.8,153.9,153.89,34.37815908]
[1748855313954,11.8,153.9,153.89,6.49814802]
[1748855314739,11.8,153.9,153.89,34.37815908]
[1748855315275,11.8,153.9,153.89,6.49814802]
[1748855315652,39.68001106,153.9,153.85,6.4998375]
[1748855316129,39.68001106,153.9,153.86,27.88001106]
[1748855316443,11.8,153.9,153.87,27.88001106]
[1748855316619,11.8,153.9,153.88,27.88001106]
[1748855317624,11.8,153.9,153.89,6.49814802]
[1748855318831,11.8,153.9,153.88,6.4984068]
[1748855319638,11.8,153.9,153.88,34.37841786]
[1748855320156,11.8,153.9,153.88,6.4984068]
[1748855320339,11.8,153.9,153.88,34.37841786]
[1748855320928,27.88001106,153.93,153.89,27.88001106]
[1748855321126,39.58001106,153.95,153.91,27.88001106]
[1748855321329,11.7,153.95,153.92,27.88001106]
[1748855321544,11.7,153.95,153.93,27.88001106]
[1748855322849,11.7,153.95,153.93,34.37617066]
[1748855323228,11.7,153.95,153.94,27.88001106]
[1748855323449,11.7,153.95,153.93,34.37617066]
[1748855323952,93.62,153.99,153.94,27.88001106]
[1748855324151,11.7,154.0,153.96,27.88001106]
[1748855324339,11.7,154.0,153.98,27.88001106]
[1748855324551,11.7,154.0,153.99,27.88001106]
[1748855325232,11.7,154.0,153.99,34.37393923]
[1748855325435,11.7,154.0,153.97,27.88001106]
[1748855325935,11.7,154.0,153.98,27.88001106]
[1748855326473,11.7,154.0,153.99,27.88001106]
[1748855326831,27.88001106,154.04,154.0,6.49350649]
[1748855327032,39.58001106,154.05,154.01,27.88001106]
[1748855327441,11.7,154.05,154.02,27.88001106]
[1748855327749,27.88001106,154.04,154.0,34.37351755]
[1748855328535,11.7,154.05,154.02,27.88001106]
[1748855328870,39.58001106,154.05,154.01,34.37272311]
[1748855329048,27.88001106,154.04,154.01,6.49271205]
[1748855329548,18.19143128,154.05,153.98,6.49434991]
[1748855329956,39.58001106,154.05,154.0,27.88001106]
[1748855330150,27.88001106,154.04,153.98,22.73022469]
[1748855330347,39.58001106,154.05,154.0,27.88001106]
[1748855330737,27.88001106,154.04,154.0,27.88001106]
[1748855330943,27.88001106,154.04,154.01,6.49308486]
[1748855331278,39.58001106,154.05,154.01,34.37309592]
[1748855331462,11.7,154.05,154.02,27.88001106]
[1748855331645,11.7,154.05,154.03,1.5214]
[1748855331850,27.88001106,154.08,154.04,27.88001106]
[1748855332151,27.88001106,154.06,154.03,1.5214]
[1748855332952,27.88001106,154.06,154.03,8.01340896]
[1748855333163,27.88001106,154.07,154.03,8.01340896]
[1748855333739,100.04987916,154.09,154.03,8.01340896]
[1748855333939,27.88001106,154.06,154.03,8.01340896]
[1748855334166,27.88001106,154.05,154.01,6.49292017]
[1748855334362,26.0,154.03,153.93,6.5155]
[1748855334549,27.88001106,153.96,153.93,6.5155]
[1748855334852,42.12,154.02,153.93,6.49645942]
[1748855335053,42.12,154.02,153.93,50.61761905]
[1748855335054,48.61306053,154.02,153.93,50.61761905]
[1748855335270,27.88001106,153.98,153.94,27.88001106]
[1748855335544,27.88001106,153.98,153.93,50.61761905]
[1748855335746,42.12,154.02,153.94,27.88001106]
[1748855335945,27.88001106,153.99,153.94,27.88001106]
[1748855336346,27.88001106,153.98,153.94,27.88001106]
[1748855336843,27.88001106,153.97,153.93,50.61761905]
[1748855337077,27.88001106,153.98,153.93,50.61761905]
[1748855337365,155.39309978,154.01,153.93,22.73760799]
[1748855337561,27.88001106,153.98,153.93,50.61761905]
[1748855337946,27.88001106,153.98,153.93,22.73760799]
[1748855338144,27.88001106,153.98,153.93,50.61761905]
[1748855338443,148.9,154.01,153.94,27.88001106]
[1748855338643,27.88001106,153.98,153.94,27.88001106]
[1748855338859,27.88001106,153.97,153.93,50.61761905]
[1748855339063,27.88001106,153.97,153.93,22.73760799]
[1748855339844,27.88001106,153.96,153.93,6.49645942]
[1748855340150,27.88001106,153.95,153.93,6.49645942]
[1748855340351,27.88001106,153.97,153.93,6.49645942]
[1748855340694,148.9,154.0,153.94,27.88001106]
[1748855340995,27.88001106,153.96,153.93,6.49645942]
[1748855341578,27.88001106,153.95,153.93,6.49645942]
[1748855341778,148.9,154.0,153.94,27.88001106]
[1748855341954,148.9,154.0,153.98,6.49434991]
[1748855342152,27.88001106,154.01,153.98,6.49434991]
[1748855342881,27.88001106,154.02,153.98,6.49434991]
[1748855343081,11.7,154.04,153.98,6.49434991]
[1748855343282,27.88001106,154.01,153.98,6.49434991]
[1748855343488,148.9,154.03,153.99,27.88001106]
[1748855343647,11.7,154.04,153.98,6.49434991]
[1748855343648,39.58001106,154.04,154.0,27.88001106]
[1748855344067,11.7,154.04,154.01,6.49308486]
[1748855344452,11.7,154.04,154.01,34.37309592]
[1748855344671,11.7,154.04,154.01,6.49308486]
[1748855345554,11.7,154.04,154.01,34.37309592]
[1748855345857,11.7,154.04,154.02,27.88001106]
[1748855346061,27.88001106,154.06,154.02,34.37225514]
[1748855346666,160.6,154.09,154.04,27.88001106]
[1748855346867,148.9,154.09,154.08,27.88001106]
[1748855347054,4.59730568,154.12,154.08,27.88001106]
[1748855347260,4.59730568,154.12,154.09,27.88001106]
[1748855347871,4.59730568,154.12,154.1,27.88001106]
[1748855348071,4.59730568,154.12,154.06,22.71842139]
[1748855348382,4.59730568,154.12,154.1,27.88001106]
[1748855348565,4.59730568,154.12,154.08,1.6316]
[1748855348773,4.59730568,154.12,154.11,53.88001106]
[1748855349072,1.00475545,154.12,154.11,74.4066]
[1748855349275,1.00475545,154.12,154.11,102.28661106]
[1748855349586,1.00475545,154.12,154.11,76.28661106]
[1748855350081,1.00475545,154.12,154.11,82.77548264]
[1748855351289,1.00475545,154.12,154.11,54.89547158]
[1748855351453,1.00475545,154.12,154.11,82.77548264]
[1748855352468,1.00475545,154.12,154.11,12.59547158]
[1748855352776,1.00475545,154.12,154.11,6.48887158]
[1748855353156,1.00475545,154.12,154.11,34.36888264]
[1748855353362,1.00475545,154.12,154.11,6.48887158]
[1748855353661,1.00475545,154.12,154.11,34.36888264]
[1748855355788,1.00475545,154.12,154.11,53.0185315]
[1748855356010,1.00475545,154.12,154.11,79.0185315]
[1748855356303,9.19461137,154.16,154.15,34.36719886]
[1748855356590,9.19461137,154.16,154.15,76.70719886]
[1748855356980,9.19461137,154.16,154.12,22.70957694]
[1748855357192,9.19461137,154.16,154.14,27.88001106]
[1748855357577,9.19461137,154.16,154.12,6.48845055]
[1748855358008,37.07462243,154.16,154.12,34.36846161]
[1748855358172,37.07462243,154.16,154.12,6.48845055]
[1748855358173,27.88001106,154.15,154.12,6.48845055]
[1748855358494,37.07462243,154.16,154.12,6.48845055]
[1748855358694,37.07462243,154.16,154.12,34.36846161]
[1748855359195,37.07462243,154.16,154.12,6.48845055]
[1748855359395,9.19461137,154.16,154.12,34.36846161]
[1748855360284,9.19461137,154.16,154.12,6.48845055]
[1748855360484,37.07462243,154.16,154.12,6.48845055]
[1748855360675,37.07462243,154.16,154.12,34.36846161]
[1748855360984,27.88001106,154.15,154.12,6.48845055]
[1748855361369,27.88001106,154.16,154.12,34.36846161]
[1748855361569,27.88001106,154.17,154.13,27.88001106]
[1748855362100,27.88001106,154.17,154.12,34.36846161]
[1748855362476,27.88001106,154.16,154.12,34.36846161]
[1748855362676,27.88001106,154.16,154.01,3.37737936]
[1748855362677,27.88001106,154.13,154.03,26.54804886]
[1748855363000,27.88001106,154.07,154.04,6.4918203]
[1748855363779,27.88001106,154.1,154.05,27.88001106]
[1748855364082,27.88001106,154.08,154.04,34.37183136]
[1748855364599,27.88001106,154.1,154.05,27.88001106]
[1748855364901,27.88001106,154.07,154.04,6.4918203]
[1748855365273,27.88001106,154.08,154.04,6.4918203]
[1748855365478,27.88001106,154.06,154.04,6.4918203]
[1748855365910,27.88001106,154.05,154.02,6.49266329]
[1748855366096,18.64964886,154.06,153.92,3.37859127]
[1748855366394,27.88001106,154.04,153.99,27.88001106]
[1748855366785,27.88001106,154.03,153.99,27.88001106]
[1748855367116,27.88001106,154.03,153.98,27.88001106]
[1748855367633,27.88001106,154.03,153.94,87.04964886]
[1748855367634,27.88001106,153.99,153.94,6.49603741]
[1748855367773,27.88001106,153.95,153.9,6.49772579]
[1748855368109,11.8,153.99,153.9,6.49772579]
[1748855368319,27.88001106,153.93,153.9,6.49772579]
[1748855368608,18.1103,153.99,153.9,32.49772579]
[1748855368609,27.88001106,153.94,153.9,32.49772579]
[1748855368773,42.72,153.98,153.86,6.2009]
[1748855368774,27.88001106,153.92,153.88,6.49857031]
[1748855368973,27.88001106,153.91,153.88,6.49857031]
[1748855369197,27.88001106,153.92,153.88,6.49857031]
[1748855369401,26.0,153.95,153.89,27.88001106]
[1748855369589,26.0,153.97,153.91,27.88001106]
[1748855369781,27.88001106,153.96,153.91,27.88001106]
[1748855370311,42.72,153.98,153.93,27.88001106]
[1748855370674,11.8,153.99,153.96,27.88001106]
[1748855371178,11.8,153.99,153.96,43.06631875]
[1748855371477,6.0658,154.03,153.98,49.56066866]
[1748855371478,43.06631875,154.03,153.98,49.56066866]
[1748855371699,43.06631875,154.03,153.99,43.06631875]
[1748855372023,11.8,154.04,153.99,43.06631875]
[1748855372306,43.06631875,154.02,153.98,49.56066866]
[1748855372674,11.8,154.04,153.98,49.56066866]
[1748855372878,43.06631875,154.03,153.98,49.56066866]
[1748855373181,43.06631875,154.02,153.98,49.56066866]
[1748855373381,43.06631875,154.02,153.91,6.333]
[1748855373382,43.06631875,153.99,153.93,16.24011764]
[1748855373598,44.64964886,154.03,153.94,43.06631875]
[1748855373799,43.06631875,154.0,153.95,43.06631875]
[1748855374100,69.06631875,154.03,153.98,43.06631875]
[1748855374395,43.06631875,154.02,153.97,43.06631875]
[1748855375338,43.06631875,154.01,153.94,18.64964886]
[1748855375501,43.06631875,154.01,153.97,43.06631875]
[1748855375675,43.06631875,154.02,153.98,6.49434991]
[1748855376595,43.06631875,154.01,153.98,6.49434991]
[1748855376800,26.0,154.03,153.98,6.49434991]
[1748855376990,43.06631875,154.01,153.98,6.49434991]
[1748855378194,43.06631875,153.99,153.97,6.49468251]
[1748855378576,32.49236062,154.03,153.97,6.49468251]
[1748855378776,43.06631875,153.99,153.97,6.49468251]
[1748855378999,43.06631875,154.0,153.97,6.49468251]
[1748855379305,43.06631875,154.0,153.96,6.49512623]
[1748855379673,148.9,154.02,153.96,6.49512623]
[1748855379896,43.06631875,154.01,153.97,43.06631875]
[1748855380597,43.06631875,154.0,153.96,65.79942887]
[1748855380793,43.06631875,154.01,153.96,65.79942887]
[1748855381278,43.06631875,154.01,153.97,43.06631875]
[1748855381779,148.9,154.02,154.0,49.55982524]
[1748855383577,11.8,154.04,154.01,43.06631875]
[1748855383777,11.8,154.04,154.02,6.49266329]
[1748855384701,12.0,154.09,154.03,43.06631875]
[1748855385295,43.06631875,154.08,154.03,43.06631875]
[1748855385889,43.06631875,154.08,154.04,6.4918203]
[1748855386386,12.0,154.09,154.04,65.78768981]
[1748855386688,55.06631875,154.09,154.04,65.78768981]
[1748855387579,43.06631875,154.06,154.04,6.4918203]
[1748855387779,54.44,154.09,154.02,22.72432151]
[1748855388002,43.06631875,154.06,154.02,65.79064026]
[1748855388586,43.06631875,154.07,154.02,65.79064026]
[1748855389387,43.06631875,154.06,154.02,65.79064026]
[1748855389581,43.06631875,154.06,154.02,22.72432151]
[1748855390687,43.06631875,154.03,153.97,16.23692927]
[1748855390992,43.06631875,153.99,153.97,16.23692927]
[1748855391195,43.06631875,154.0,153.97,16.23692927]
[1748855391420,26.0,154.04,153.97,59.30324802]
[1748855391589,43.06631875,154.03,153.98,43.06631875]
[1748855391784,42.4,154.05,153.99,43.06631875]
[1748855392108,43.06631875,154.07,154.03,43.06631875]
[1748855392296,43.06631875,154.06,154.02,22.72432151]
[1748855392497,43.06631875,154.05,154.02,22.72432151]
[1748855392703,43.06631875,154.06,154.02,22.72432151]
[1748855393115,43.06631875,154.06,154.02,6.49266329]
[1748855393290,27.80970843,154.06,154.02,6.49266329]
[1748855393505,87.00981372,154.09,154.02,6.49266329]
[1748855393695,27.80970843,154.06,154.02,6.49266329]
[1748855394390,27.80970843,154.05,154.02,6.49266329]
[1748855394796,27.80970843,154.04,154.02,6.49266329]
[1748855395291,27.80970843,154.05,154.02,6.49266329]
[1748855395717,27.80970843,154.04,153.99,27.80970843]
[1748855395897,27.80970843,154.04,153.99,50.53845704]
[1748855396609,6.49057723,154.07,153.99,50.53845704]
[1748855396814,27.80970843,154.05,154.01,27.80970843]
[1748855397119,27.80970843,154.04,154.0,27.80970843]
[1748855397296,27.80970843,154.04,153.99,50.53845704]
[1748855398593,6.49072778,154.07,153.99,50.53845704]
[1748855398792,6.49072778,154.07,154.0,27.80970843]
[1748855398793,27.80970843,154.04,154.0,27.80970843]
[1748855399012,27.80970843,154.01,153.99,6.49392817]
[1748855400014,27.80970843,154.01,153.97,27.80970843]
[1748855400236,27.80970843,153.99,153.94,22.73613095]
[1748855400408,38.0,154.03,153.94,6.49603741]
[1748855400409,27.80970843,153.96,153.94,6.49603741]
[1748855401720,27.80970843,153.95,153.92,6.49688149]
[1748855402316,155.39411359,153.99,153.91,6.49730361]
[1748855402504,27.80970843,153.96,153.91,34.30701204]
[1748855402700,148.9,153.98,153.92,27.80970843]
[1748855402897,42.36,154.01,153.96,27.80970843]
[1748855402898,27.80970843,154.01,153.96,27.80970843]
[1748855403316,27.80970843,154.0,153.95,27.80970843]
[1748855403522,27.80970843,153.99,153.95,27.80970843]
[1748855403938,27.80970843,154.0,153.95,27.80970843]
[1748855404235,80.34,154.03,153.95,27.80970843]
[1748855404236,27.80970843,153.99,153.95,27.80970843]
[1748855404397,27.80970843,153.99,153.96,6.49519355]
[1748855404598,27.80970843,154.02,153.97,27.80970843]
[1748855404825,39.80970843,154.03,153.98,27.80970843]
[1748855405407,12.0,154.03,153.99,27.80970843]
[1748855405624,12.0,154.03,154.0,27.80970843]
[1748855406131,27.80970843,154.01,153.97,27.80970843]
[1748855406306,12.0,154.03,153.94,22.73609923]
[1748855406307,27.80970843,153.98,153.94,22.73609923]
[1748855406627,27.80970843,153.96,153.94,22.73609923]
[1748855407127,27.80970843,153.98,153.94,22.73609923]
[1748855407504,27.80970843,153.97,153.94,22.73609923]
[1748855407921,27.80970843,153.96,153.94,6.49603741]
[1748855408331,27.80970843,153.96,153.92,22.73906605]
[1748855408501,27.80970843,153.95,153.92,22.73906605]
[1748855409296,27.80970843,153.96,153.92,22.73906605]
[1748855409513,27.80970843,153.98,153.93,27.80970843]
[1748855409708,27.80970843,153.97,153.93,27.80970843]
[1748855410106,155.39319739,154.01,153.92,22.73906605]
[1748855410107,148.9,154.01,153.92,55.22347353]
[1748855410309,176.70970843,154.01,153.97,6.4947717]
[1748855410512,27.80970843,154.0,153.97,6.4947717]
[1748855411630,27.80970843,153.99,153.97,6.4947717]
[1748855411999,148.9,154.01,153.97,6.4947717]
[1748855412000,27.80970843,154.0,153.97,6.4947717]
[1748855412204,27.80970843,153.99,153.97,6.4947717]
[1748855412412,27.80970843,153.99,153.96,6.49519355]
[1748855413010,27.80970843,153.98,153.96,6.49519355]
[1748855413416,148.9,154.01,153.96,6.49519355]
[1748855413417,27.80970843,153.97,153.96,6.49519355]
[1748855413743,27.80970843,153.97,153.94,6.49603741]
[1748855414108,27.80970843,153.96,153.94,6.49603741]
[1748855414522,27.80970843,153.96,153.93,6.49645942]
[1748855414727,27.80970843,153.99,153.94,27.80970843]
[1748855415132,27.80970843,153.99,153.95,27.80970843]
[1748855415509,176.70970843,154.0,153.95,27.80970843]
[1748855415910,27.80970843,153.99,153.95,27.80970843]
[1748855416527,27.80970843,153.99,153.96,22.73317744]
[1748855417526,176.70970843,154.0,153.96,22.73317744]
[1748855417724,148.9,154.0,153.98,27.80970843]
[1748855417922,148.9,154.0,153.97,27.80970843]
[1748855418234,148.9,154.0,153.96,50.54288587]
[1748855418537,148.9,154.0,153.94,22.73613095]
[1748855418733,176.70970843,154.0,153.96,27.80970843]
[1748855419516,176.70970843,154.0,153.97,6.4947717]
[1748855420915,148.9,154.0,153.97,6.4947717]
[1748855421237,12.0,154.03,153.99,27.80970843]
[1748855421533,12.0,154.03,153.97,55.20555951]
[1748855421534,12.0,154.03,154.02,27.80970843]
[1748855422540,12.0,154.03,154.02,6.49266329]
[1748855423035,12.0,154.03,154.02,34.30237172]
[1748855423232,12.0,154.03,154.02,6.49266329]
[1748855425238,39.80970843,154.03,153.98,6.49434991]
[1748855425420,27.80970843,154.0,153.98,6.49434991]
[1748855426238,12.0,154.03,153.99,27.80970843]
[1748855426514,12.0,154.03,154.0,27.80970843]
[1748855426945,12.0,154.03,154.01,6.49308486]
[1748855427324,12.0,154.03,154.01,34.30279329]
[1748855429841,26.0,154.08,154.02,27.80970843]
[1748855430044,27.80970843,154.07,154.02,27.80970843]
[1748855430735,27.80970843,154.07,154.03,27.80970843]
[1748855431728,27.80970843,154.07,154.04,6.4918203]
[1748855432651,27.80970843,154.05,153.92,11.6378]
[1748855432864,27.80970843,153.99,153.93,6.49645942]
[1748855433025,27.80970843,153.94,153.93,6.49645942]
[1748855433223,27.80970843,153.94,153.89,16.24432966]
[1748855433421,27.80970843,153.93,153.9,6.49772579]
[1748855433643,27.80970843,153.93,153.89,22.74247768]
[1748855433946,27.80970843,153.94,153.89,50.55218611]
[1748855434140,27.80970843,153.93,153.89,22.74247768]
[1748855434539,27.80970843,153.94,153.89,50.55218611]
[1748855435931,27.80970843,153.93,153.9,26.0]
[1748855436325,8.09572998,153.98,153.9,26.0]
[1748855436537,27.80970843,153.95,153.9,53.80970843]
[1748855436849,27.80970843,153.94,153.9,26.0]
[1748855437037,27.80970843,153.94,153.91,6.49730361]
[1748855437423,27.80970843,153.93,153.91,6.49730361]
[1748855437752,27.80970843,153.92,153.9,26.0]
[1748855438928,27.80970843,153.92,153.9,6.49770382]
[1748855440489,42.06,153.95,153.9,6.49770382]
[1748855440652,27.80970843,153.94,153.9,6.49770382]
[1748855441163,42.06,153.95,153.9,6.49770382]
[1748855441164,11.76,153.99,153.93,27.80970843]
[1748855441470,27.80970843,153.96,153.9,22.7420183]